fUST/lending_fUST_20250917
["ID","MTS","AMOUNT","RATE_DAILY","PERIOD"]
[385871955,1758077442489,-1972.98,0.00021917,2]
[385871956,1758077442499,-480.0,0.00021917,2]
[385871957,1758077442508,-480.0,0.00021917,2]
[385871958,1758077442517,-960.74,0.00021917,2]
[385871959,1758077442527,-830.91,0.00021917,2]
[385871960,1758077442536,-2070.35,0.00021917,2]
[385871961,1758077442545,-3079.66,0.00021917,2]
[385871962,1758077442554,-535.34,0.00021917,2]
[385871963,1758077442563,-480.0,0.00021917,2]
[385871964,1758077442572,-506.73221345,0.00021917,2]
[385871965,1758077442581,-823.83,0.00021917,2]
[385871966,1758077442590,-480.0,0.00021917,2]
[385871967,1758077442601,-480.0,0.00021917,2]
[385871968,1758077442610,-480.0,0.00021917,2]
[385871969,1758077442619,-1363.39,0.00021917,2]
[385871970,1758077442628,-1672.89,0.00021917,2]
[385871971,1758077442638,-480.0,0.00021917,2]
[385871972,1758077442650,-685.63,0.00021917,2]
[385871973,1758077442659,-165.95670235,0.00021917,2]
[385871974,1758077442668,-1385.25,0.00021917,2]
[385871975,1758077442677,-2372.12,0.00021917,2]
[385871976,1758077442686,-480.0,0.00021917,2]
[385871977,1758077442694,-480.0,0.00021917,2]
[385871978,1758077442704,-480.0,0.00021917,2]
[385871979,1758077442714,-480.0,0.00021917,2]
[385871980,1758077442723,-480.0,0.00021917,2]
[385871981,1758077442732,-480.0,0.00021917,2]
[385871982,1758077442741,-572.7,0.00021917,2]
[385871983,1758077442751,-3371.29,0.00021917,2]
[385871984,1758077442760,-448.15286328,0.00021917,2]
[385871985,1758077442769,-480.0,0.00021917,2]
[385871986,1758077442778,-480.0,0.00021917,2]
[385871987,1758077442787,-480.0,0.00021917,2]
[385871988,1758077442796,-361.74589447,0.00021917,2]
[385871989,1758077442806,-480.0,0.00021917,2]
[385871990,1758077442815,-836.51,0.00021917,2]
[385871991,1758077442824,-578.66,0.00021917,2]
[385871992,1758077442834,-480.0,0.00021917,2]
[385871993,1758077442843,-658.13,0.00021917,2]
[385871994,1758077442852,-663.56,0.00021917,2]
[385871995,1758077442862,-480.0,0.00021917,2]
[385871996,1758077442871,-4793.11,0.00021917,2]
[385871997,1758077442880,-500.0,0.00021917,2]
[385871998,1758077442889,-500.0,0.00021917,2]
[385871999,1758077442899,-4530.33,0.00021917,2]
[385872000,1758077442908,-314.55128796,0.00021917,2]
[385872001,1758077442918,-480.0,0.00021917,2]
[385872002,1758077442927,-18661.68,0.00021917,2]
[385872003,1758077442936,-1138.75,0.00021917,2]
[385872004,1758077442945,-705.83,0.00021917,2]
[385872005,1758077442954,-480.0,0.00021917,2]
[385872006,1758077442964,-734.92,0.00021917,2]
[385872007,1758077442973,-582.58658409,0.00021917,2]
[385872008,1758077442983,-480.0,0.00021917,2]
[385872009,1758077442992,-961.87,0.00021917,2]
[385872011,1758077443002,-480.0,0.00021917,2]
[385872012,1758077443011,-480.0,0.00021917,2]
[385872014,1758077443020,-2298.95,0.00021917,2]
[385872017,1758077443029,-537.42588688,0.00021917,2]
[385872020,1758077443038,-2052.74,0.00021917,2]
[385872023,1758077443047,-500.0,0.00021917,2]
[385872024,1758077443056,-480.0,0.00021917,2]
[385872025,1758077443066,-480.0,0.00021917,2]
[385872026,1758077443075,-846.57,0.00021917,2]
[385872027,1758077443084,-900.9,0.00021917,2]
[385872029,1758077443094,-480.0,0.00021917,2]
[385872030,1758077443103,-480.0,0.00021917,2]
[385872031,1758077443112,-870.79,0.00021917,2]
[385872032,1758077443121,-251.1,0.00021924,2]
[385872033,1758077443130,-1087.7944546,0.00021938,2]
[385872035,1758077443140,-168.0,0.00021947,2]
[385872036,1758077443153,-596.96181244,0.00021973,2]
[385872037,1758077443162,-500.0,0.00021973,2]
[385872038,1758077443171,-500.0,0.00021973,2]
[385872039,1758077443180,-505.12935722,0.00021973,2]
[385872040,1758077443189,-500.0,0.00021973,2]
[385872041,1758077443198,-500.0,0.00021973,2]
[385872042,1758077443208,-500.85843466,0.00021973,2]
[385872043,1758077443218,-500.0,0.00021973,2]
[385872044,1758077443227,-150.28976063,0.00021973,2]
[385872045,1758077443236,-500.0,0.00021973,2]
[385872046,1758077443246,-500.0,0.00021973,2]
[385872047,1758077443255,-240.30302826,0.0002199,2]
[385872048,1758077443265,-159.35905658,0.00022,5]
[385872049,1758077443274,-234.11,0.00022,2]
[385872050,1758077443283,-251.1,0.00022078,2]
[385872051,1758077443292,-168.0,0.00022105,2]
[385872052,1758077443301,-247.77376594,0.00022125,2]
[385872053,1758077443312,-500.0,0.00022146,2]
[385872054,1758077443322,-977.0,0.00022163,2]
[385872055,1758077443335,-2163.211,0.00022163,2]
[385872056,1758077443344,-636.664,0.00022163,2]
[385872058,1758077443353,-312.529088,0.00022173,2]
[385872060,1758077443363,-500.0,0.00022191,2]
[385872061,1758077443372,-480.0,0.00022191,3]
[385872062,1758077443382,-480.0,0.00022191,3]
[385872063,1758077443391,-480.0,0.00022191,3]
[385872064,1758077443401,-480.0,0.00022191,3]
[385872065,1758077443410,-480.0,0.00022191,3]
[385872067,1758077443510,-480.0,0.00022191,3]
[385872069,1758077443520,-489.60084502,0.00022191,3]
[385872071,1758077443529,-480.0,0.00022191,3]
[385872073,1758077443538,-480.0,0.00022191,3]
[385872075,1758077443547,-480.0,0.00022191,3]
[385872077,1758077443556,-485.75615975,0.00022191,3]
[385872079,1758077443565,-687.03,0.00022191,2]
[385872081,1758077443575,-376.58982472,0.00022191,3]
[385872083,1758077443584,-480.0,0.00022191,3]
[385872085,1758077443593,-486.2463468,0.00022191,3]
[385872087,1758077443603,-733.51,0.00022191,3]
[385872089,1758077443612,-480.0,0.00022191,3]
[385872091,1758077443622,-713.9,0.00022191,3]
[385872092,1758077443633,-480.0,0.00022191,3]
[385872094,1758077443644,-480.0,0.00022191,3]
[385872096,1758077443653,-480.0,0.00022191,3]
[385872098,1758077443663,-480.0,0.00022191,3]
[385872100,1758077443673,-480.0,0.00022191,3]
[385872102,1758077443683,-480.0,0.00022191,3]
[385872104,1758077443692,-480.0,0.00022191,3]
[385872106,1758077443701,-480.0,0.00022191,3]
[385872108,1758077443712,-182.81573785,0.00022191,3]
[385872110,1758077443721,-480.0,0.00022191,3]
[385872112,1758077443731,-480.0,0.00022191,3]
[385872114,1758077443740,-480.0,0.00022191,3]
[385872116,1758077443749,-480.0,0.00022191,3]
[385872118,1758077443758,-626.56,0.00022191,3]
[385872120,1758077443767,-480.0,0.00022191,3]
[385872122,1758077443776,-480.0,0.00022191,3]
[385872124,1758077443786,-323.48524403,0.00022191,3]
[385872176,1758077446532,-160.0,0.00021915,2]
[385872177,1758077446542,-411.0,0.00022163,2]
[385872178,1758077446551,-413.475,0.00022163,2]
[385872179,1758077446560,-40.26079726,0.00022191,3]
[385872180,1758077446697,-375.30395871,0.00022191,3]
[385872181,1758077446707,-480.0,0.00022191,3]
[385872182,1758077446716,-187.57989729,0.00022191,3]
[385872188,1758077610816,211.22026479,0.000199,2]
[385872189,1758077683622,10819.9222659,0.00028,30]
[385872190,1758077800334,211.15930344,0.000199,2]
[385872195,1758077981281,206.2405852,0.000199,2]
[385872196,1758078035783,218.54543597,0.00021146,2]
[385872198,1758078163463,210.83039294,0.000199,2]
[385872200,1758078347792,216.75716915,0.000199,2]
[385872201,1758078528699,222.00321873,0.000199,2]
[385872202,1758078562193,164.0,0.000211,3]
[385872203,1758078564304,164.0,0.000211,3]
[385872204,1758078592419,165.2850097,0.00028,31]
[385872277,1758078638582,-188.3,0.00021768,2]
[385872279,1758078638592,-1242.53321516,0.000218,2]
[385872282,1758078638603,-3104.48440561,0.000218,2]
[385872284,1758078638612,-1200.0,0.00021894,2]
[385872285,1758078638621,-160.0,0.00021895,2]
[385872287,1758078638630,-160.0,0.00021895,2]
[385872289,1758078638639,-160.0,0.00021895,2]
[385872291,1758078638649,-21.65499825,0.00021895,2]
[385872295,1758078638673,-211.6901731,0.00021895,2]
[385872297,1758078638682,-300.0,0.00021897,2]
[385872299,1758078638691,-525.11585,0.00021898,2]
[385872301,1758078638703,-674.88415,0.00021898,2]
[385872303,1758078638719,-160.0,0.00021899,2]
[385872305,1758078638728,-847.79063332,0.00021899,2]
[385872307,1758078638737,-160.0,0.00021899,2]
[385872309,1758078638746,-160.0,0.00021899,2]
[385872311,1758078638755,-160.0,0.00021899,2]
[385872313,1758078638764,-218.37572377,0.00021904,2]
[385872315,1758078638773,-169.40312314,0.00021916,2]
[385872516,1758078640627,-253.99848521,0.00021916,2]
[385872523,1758078640681,-121.03344208,0.00021916,2]
[385872525,1758078640690,-500.0,0.00021916,2]
[385872527,1758078640699,-500.0,0.00021916,2]
[385872529,1758078640708,-500.0,0.00021916,2]
[385872531,1758078640717,-500.0,0.00021916,2]
[385872533,1758078640727,-500.0,0.00021916,2]
[385872535,1758078640736,-500.0,0.00021916,2]
[385872537,1758078640745,-500.0,0.00021916,2]
[385872539,1758078640754,-500.0,0.00021916,2]
[385872541,1758078640763,-500.0,0.00021916,2]
[385872543,1758078640772,-500.0,0.00021916,2]
[385872545,1758078640781,-500.0,0.00021916,2]
[385872547,1758078640790,-500.0,0.00021916,2]
[385872549,1758078640799,-500.0,0.00021916,2]
[385872550,1758078640808,-500.0,0.00021916,2]
[385872553,1758078640818,-500.0,0.00021916,2]
[385872555,1758078640828,-500.0,0.00021916,2]
[385872556,1758078640837,-500.0,0.00021916,2]
[385872560,1758078640847,-500.0,0.00021916,2]
[385872562,1758078640856,-500.0,0.00021916,2]
[385872563,1758078640865,-500.0,0.00021916,2]
[385872565,1758078640874,-500.0,0.00021916,2]
[385872567,1758078640883,-500.0,0.00021916,2]
[385872569,1758078640892,-500.0,0.00021916,2]
[385872571,1758078640901,-500.0,0.00021916,2]
[385872573,1758078640910,-500.0,0.00021916,2]
[385872575,1758078640919,-500.0,0.00021916,2]
[385872577,1758078640928,-500.0,0.00021916,2]
[385872579,1758078640938,-500.0,0.00021916,2]
[385872581,1758078640947,-500.0,0.00021916,2]
[385872583,1758078640956,-500.0,0.00021916,2]
[385872585,1758078640965,-500.0,0.00021916,2]
[385872587,1758078640974,-500.0,0.00021916,2]
[385872589,1758078640984,-500.0,0.00021916,2]
[385872591,1758078640993,-500.0,0.00021916,2]
[385872593,1758078641002,-500.0,0.00021916,2]
[385872595,1758078641011,-500.0,0.00021916,2]
[385872597,1758078641020,-233.34605896,0.00021916,2]
[385872599,1758078641029,-500.0,0.00021916,2]
[385872601,1758078641038,-500.0,0.00021916,2]
[385872603,1758078641047,-500.0,0.00021916,2]
[385872605,1758078641057,-500.0,0.00021916,2]
[385872607,1758078641066,-500.0,0.00021916,2]
[385872609,1758078641075,-250.0,0.00021916,2]
[385872611,1758078641084,-500.0,0.00021916,2]
[385872613,1758078641093,-192.41254151,0.00021916,2]
[385872615,1758078641103,-500.0,0.00021916,2]
[385872617,1758078641112,-500.0,0.00021916,2]
[385872619,1758078641121,-500.0,0.00021916,2]
[385872621,1758078641129,-167.49682494,0.00021916,2]
[385872623,1758078641139,-480.0,0.00021917,2]
[385872625,1758078641148,-480.0,0.00021917,2]
[385872627,1758078641157,-488.65689824,0.00021917,2]
[385872629,1758078641166,-488.50494332,0.00021917,2]
[385872631,1758078641176,-487.55414863,0.00021917,2]
[385872633,1758078641185,-480.0,0.00021917,2]
[385872635,1758078641193,-484.11790838,0.00021917,2]
[385872637,1758078641202,-486.08161209,0.00021917,2]
[385872639,1758078641211,-480.0,0.00021917,2]
[385872640,1758078641221,-480.0,0.00021917,2]
[385872642,1758078641230,-480.0,0.00021917,2]
[385872644,1758078641239,-480.0,0.00021917,2]
[385872647,1758078641249,-480.0,0.00021917,2]
[385872649,1758078641258,-480.0,0.00021917,2]
[385872651,1758078641268,-480.0,0.00021917,2]
[385872653,1758078641277,-480.0,0.00021917,2]
[385872655,1758078641286,-451.09,0.00021917,2]
[385872657,1758078641295,-480.0,0.00021917,2]
[385872658,1758078641305,-480.0,0.00021917,2]
[385872660,1758078641314,-480.0,0.00021917,2]
[385872662,1758078641323,-480.0,0.00021917,2]
[385872664,1758078641332,-672.39,0.00021917,2]
[385872666,1758078641344,-480.0,0.00021917,2]
[385872668,1758078641353,-654.41,0.00021917,2]
[385872670,1758078641362,-480.0,0.00021917,2]
[385872672,1758078641371,-480.0,0.00021917,2]
[385872673,1758078641381,-480.0,0.00021917,2]
[385872674,1758078641390,-543.7,0.00021917,2]
[385872675,1758078641400,-480.0,0.00021917,2]
[385872676,1758078641409,-480.0,0.00021917,2]
[385872677,1758078641418,-480.0,0.00021917,2]
[385872678,1758078641427,-480.0,0.00021917,2]
[385872679,1758078641436,-570.85142055,0.00021917,2]
[385872680,1758078641445,-480.0,0.00021917,2]
[385872681,1758078641454,-480.0,0.00021917,2]
[385872682,1758078641463,-574.35,0.00021917,2]
[385872683,1758078641472,-677.46,0.00021917,2]
[385872684,1758078641483,-803.77,0.00021917,2]
[385872685,1758078641493,-480.0,0.00021917,2]
[385872686,1758078641502,-480.0,0.00021917,2]
[385872687,1758078641512,-480.0,0.00021917,2]
[385872688,1758078641521,-480.0,0.00021917,2]
[385872689,1758078641530,-480.0,0.00021917,2]
[385872690,1758078641540,-480.0,0.00021917,2]
[385872691,1758078641550,-596.27039604,0.00021917,2]
[385872692,1758078641558,-218.91129038,0.00021917,2]
[385872693,1758078641568,-480.0,0.00021917,2]
[385872694,1758078641577,-480.0,0.00021917,2]
[385872695,1758078641585,-946.96,0.00021917,2]
[385872696,1758078641594,-509.76,0.00021917,2]
[385872697,1758078641603,-480.0,0.00021917,2]
[385872698,1758078641612,-1855.92,0.00021917,2]
[385872699,1758078641621,-480.0,0.00021917,2]
[385872700,1758078641630,-846.75,0.00021917,2]
[385872702,1758078641639,-520.02,0.00021917,2]
[385872703,1758078641648,-480.0,0.00021917,2]
[385872705,1758078641657,-480.0,0.00021917,2]
[385872707,1758078641667,-480.0,0.00021917,2]
[385872709,1758078641676,-480.0,0.00021917,2]
[385872711,1758078641685,-1493.32,0.00021917,2]
[385872713,1758078641694,-480.0,0.00021917,2]
[385872715,1758078641703,-863.36,0.00021917,2]
[385872717,1758078641713,-480.0,0.00021917,2]
[385872719,1758078641722,-525.09,0.00021917,2]
[385872721,1758078641730,-480.0,0.00021917,2]
[385872723,1758078641739,-4341.57,0.00021917,2]
[385872725,1758078641749,-547.89,0.00021917,2]
[385872738,1758078641860,-425.97671253,0.00021917,2]
[385872740,1758078641869,-480.0,0.00021917,2]
[385872742,1758078641879,-480.0,0.00021917,2]
[385872744,1758078641887,-480.0,0.00021917,2]
[385872746,1758078641896,-1563.63,0.00021917,2]
[385872748,1758078641905,-1305.27,0.00021917,2]
[385872750,1758078641915,-480.0,0.00021917,2]
[385872752,1758078641924,-480.0,0.00021917,2]
[385872754,1758078641933,-480.0,0.00021917,2]
[385872756,1758078641942,-436.87317553,0.00021917,2]
[385872758,1758078641952,-480.0,0.00021917,2]
[385872760,1758078641961,-747.87,0.00021917,2]
[385872762,1758078641970,-480.0,0.00021917,2]
[385872764,1758078641979,-925.92,0.00021917,2]
[385872766,1758078641989,-480.0,0.00021917,2]
[385872768,1758078641999,-480.0,0.00021917,2]
[385872769,1758078642008,-607.3,0.00021917,2]
[385872771,1758078642018,-3074.16,0.00021917,2]
[385872773,1758078642027,-489.29,0.00021917,2]
[385872775,1758078642036,-1352.34,0.00021917,2]
[385872777,1758078642046,-480.0,0.00021917,2]
[385872779,1758078642055,-773.31,0.00021917,2]
[385872781,1758078642064,-480.0,0.00021917,2]
[385872783,1758078642074,-480.0,0.00021917,2]
[385872785,1758078642083,-796.29,0.00021917,2]
[385872787,1758078642092,-480.0,0.00021917,2]
[385872789,1758078642101,-480.0,0.00021917,2]
[385872791,1758078642110,-480.0,0.00021917,2]
[385872793,1758078642119,-2951.34,0.00021917,2]
[385872795,1758078642128,-1890.77,0.00021917,2]
[385872796,1758078642139,-480.0,0.00021917,2]
[385872798,1758078642148,-480.0,0.00021917,2]
[385872800,1758078642157,-480.0,0.00021917,2]
[385872802,1758078642166,-480.0,0.00021917,2]
[385872804,1758078642175,-324.34758489,0.00021917,2]
[385872806,1758078642184,-480.0,0.00021917,2]
[385872808,1758078642193,-1603.19,0.00021917,2]
[385872810,1758078642202,-480.0,0.00021917,2]
[385872812,1758078642211,-520.70584364,0.00021917,2]
[385872814,1758078642220,-802.84,0.00021917,2]
[385872816,1758078642229,-2273.28,0.00021917,2]
[385872817,1758078642239,-480.0,0.00021917,2]
[385872819,1758078642248,-480.0,0.00021917,2]
[385872821,1758078642257,-480.0,0.00021917,2]
[385872823,1758078642266,-657.06,0.00021917,2]
[385872825,1758078642275,-480.0,0.00021917,2]
[385872827,1758078642284,-3230.82,0.00021917,2]
[385872829,1758078642293,-505.0797906,0.00021917,2]
[385872831,1758078642302,-789.5,0.00021917,2]
[385872833,1758078642312,-497.97,0.00021917,2]
[385872835,1758078642321,-548.84,0.00021917,2]
[385872837,1758078642330,-1306.59,0.00021917,2]
[385872839,1758078642341,-480.0,0.00021917,2]
[385872841,1758078642351,-480.0,0.00021917,2]
[385872843,1758078642360,-480.0,0.00021917,2]
[385872845,1758078642370,-641.35,0.00021917,2]
[385872847,1758078642379,-920.71,0.00021917,2]
[385872849,1758078642388,-480.0,0.00021917,2]
[385872851,1758078642397,-554.55,0.00021917,2]
[385872853,1758078642406,-480.0,0.00021917,2]
[385872855,1758078642415,-1984.09,0.00021917,2]
[385872857,1758078642424,-4593.4,0.00021917,2]
[385872859,1758078642433,-480.0,0.00021917,2]
[385872861,1758078642442,-1091.31,0.00021917,2]
[385872862,1758078642451,-630.71,0.00021917,2]
[385872864,1758078642461,-592.72,0.00021917,2]
[385872866,1758078642470,-480.0,0.00021917,2]
[385872868,1758078642479,-921.79,0.00021917,2]
[385872870,1758078642491,-676.42,0.00021917,2]
[385872872,1758078642501,-1698.74,0.00021917,2]
[385872874,1758078642510,-2203.16,0.00021917,2]
[385872876,1758078642519,-1557.37,0.00021917,2]
[385872878,1758078642530,-635.91,0.00021917,2]
[385872880,1758078642540,-480.0,0.00021917,2]
[385872882,1758078642550,-347.01948137,0.00021917,2]
[385872884,1758078642563,-17884.11,0.00021917,2]
[385872886,1758078642572,-480.0,0.00021917,2]
[385872888,1758078642582,-480.0,0.00021917,2]
[385872890,1758078642591,-629.78,0.00021917,2]
[385872892,1758078642600,-480.0,0.00021917,2]
[385872894,1758078642609,-834.51,0.00021917,2]
[385872896,1758078642618,-1327.53,0.00021917,2]
[385872898,1758078642628,-482.78645302,0.00021917,2]
[385873024,1758078643815,-221.51354698,0.00021917,2]
[385873026,1758078643824,-801.66,0.00021917,2]
[385873028,1758078643832,-188.3,0.00021922,2]
[385873030,1758078643842,-168.0,0.00022045,2]
[385873032,1758078643852,-977.0,0.0002207,2]
[385873034,1758078643861,-638.515,0.0002207,2]
[385873036,1758078643870,-2157.0,0.0002207,2]
[385873038,1758078643879,-188.3,0.00022075,2]
[385873040,1758078643888,-140.25560098,0.00022091,2]
[385873042,1758078643900,-299.82273802,0.00022091,2]
[385873044,1758078643909,-545.47239027,0.00022091,2]
[385873321,1758078646859,-316.5354621,0.00022091,2]
[385873330,1758078646933,-2304.87132103,0.00022091,2]
[385873332,1758078646943,-500.0,0.00022173,2]
[385873334,1758078646952,-500.0,0.00022173,2]
[385873336,1758078646962,-500.0,0.00022173,2]
[385873338,1758078646971,-500.0,0.00022173,2]
[385873340,1758078646981,-500.0,0.00022173,2]
[385873341,1758078646990,-899.2,0.00022181,3]
[385873343,1758078646999,-480.0,0.00022191,3]
[385873345,1758078647010,-480.0,0.00022191,3]
[385873347,1758078647019,-487.83031878,0.00022191,3]
[385873349,1758078647028,-480.0,0.00022191,3]
[385873351,1758078647037,-480.0,0.00022191,3]
[385873353,1758078647046,-480.0,0.00022191,3]
[385873355,1758078647055,-480.0,0.00022191,3]
[385873357,1758078647063,-482.8,0.00022191,3]
[385873359,1758078647073,-480.0,0.00022191,3]
[385873361,1758078647082,-480.0,0.00022191,3]
[385873363,1758078647092,-480.0,0.00022191,3]
[385873365,1758078647101,-480.0,0.00022191,3]
[385873367,1758078647110,-672.39,0.00022191,3]
[385873369,1758078647119,-203.08461537,0.00022191,2]
[385873371,1758078647128,-654.41,0.00022191,3]
[385873373,1758078647138,-480.0,0.00022191,3]
[385873375,1758078647147,-480.0,0.00022191,3]
[385873377,1758078647158,-480.0,0.00022191,3]
[385873379,1758078647168,-244.89015814,0.00022191,3]
[385873381,1758078647180,-235.10984186,0.00022191,3]
[385873383,1758078647189,-205.4747174,0.00022191,3]
[385873385,1758078647198,-480.0,0.00022191,3]
[385873387,1758078647207,-480.0,0.00022191,3]
[385873389,1758078647216,-480.0,0.00022191,3]
[385873391,1758078647225,-217.64,0.00022191,3]
[385873393,1758078647235,-574.35,0.00022191,3]
[385873395,1758078647244,-677.46,0.00022191,3]
[385873396,1758078647253,-803.77,0.00022191,3]
[385873398,1758078647262,-377.18824703,0.00022191,3]
[385874178,1758078713382,222.00321869,0.000199,2]
[385874179,1758078771206,151.07,0.00028,30]
[385874181,1758078893168,204.45885413,0.000199,2]
[385874182,1758079075979,204.45885413,0.000199,2]
[385874183,1758079124906,567.5167467,0.00030322,50]
[385874185,1758079159019,152.74,0.00027767,120]
[385874187,1758079254901,204.45885413,0.000199,2]
[385874191,1758079436421,204.40541529,0.000199,2]
[385874192,1758079531815,161.2064139,0.00020916,2]
[385874219,1758079831890,-168.0,0.00021663,2]
[385874220,1758079831902,-247.39538111,0.00021914,2]
[385874221,1758079831915,-169.75934674,0.00021914,2]
[385874222,1758079831924,-160.0,0.00021915,2]
[385874223,1758079831933,-160.0,0.00021915,2]
[385874225,1758079831944,-1200.0,0.00021915,2]
[385874227,1758079831954,-300.0,0.00021915,2]
[385874229,1758079831963,-1200.0,0.00021915,2]
[385874231,1758079831972,-160.0,0.00021916,2]
[385874233,1758079831981,-233.34517135,0.00021916,2]
[385874235,1758079831990,-160.0,0.00021916,2]
[385874236,1758079831999,-500.0,0.00021916,2]
[385874237,1758079832009,-500.0,0.00021916,2]
[385874238,1758079832018,-500.0,0.00021916,2]
[385874239,1758079832027,-500.0,0.00021916,2]
[385874240,1758079832036,-500.0,0.00021916,2]
[385874241,1758079832045,-328.61118275,0.00021916,2]
[385874242,1758079832056,-171.38881725,0.00021916,2]
[385874243,1758079832066,-500.0,0.00021916,2]
[385874244,1758079832076,-366.72800727,0.00021916,2]
[385874245,1758079832091,-133.27199273,0.00021916,2]
[385874246,1758079832100,-560.74617661,0.00021916,2]
[385874247,1758079832110,-480.0,0.00021917,2]
[385874248,1758079832119,-480.0,0.00021917,2]
[385874249,1758079832128,-599.87,0.00021917,2]
[385874250,1758079832138,-480.0,0.00021917,2]
[385874251,1758079832147,-1272.22,0.00021917,2]
[385874252,1758079832156,-1272.22,0.00021917,2]
[385874253,1758079832168,-480.0,0.00021917,2]
[385874254,1758079832180,-480.0,0.00021917,2]
[385874255,1758079832189,-526.49,0.00021917,2]
[385874256,1758079832198,-756.79,0.00021917,2]
[385874257,1758079832207,-621.01,0.00021917,2]
[385874258,1758079832218,-480.0,0.00021917,2]
[385874259,1758079832227,-480.0,0.00021917,2]
[385874260,1758079832236,-480.0,0.00021917,2]
[385874261,1758079832245,-480.0,0.00021917,2]
[385874262,1758079832254,-281.76545184,0.00021917,2]
[385874263,1758079832264,-480.0,0.00021917,2]
[385874264,1758079832273,-544.55,0.00021917,2]
[385874265,1758079832283,-480.0,0.00021917,2]
[385874266,1758079832292,-907.5,0.00021917,2]
[385874267,1758079832303,-480.0,0.00021917,2]
[385874268,1758079832312,-488.52,0.00021917,2]
[385874269,1758079832322,-480.0,0.00021917,2]
[385874270,1758079832334,-287.82,0.00021917,2]
[385874271,1758079832344,-480.0,0.00021917,2]
[385874272,1758079832353,-498.36,0.00021917,2]
[385874273,1758079832362,-480.0,0.00021917,2]
[385874274,1758079832371,-480.0,0.00021917,2]
[385874275,1758079832380,-5412.98762827,0.00021917,2]
[385874276,1758079832392,-1192.54786686,0.00021917,2]
[385874289,1758079837873,-374.4860386,0.00021917,2]
[385874290,1758079837884,-10186.45846627,0.00021917,2]
[385874291,1758079837893,-480.0,0.00021917,2]
[385874292,1758079837903,-544.35,0.00021917,2]
[385874293,1758079837912,-1250.88,0.00021917,2]
[385874294,1758079837921,-480.0,0.00021917,2]
[385874295,1758079837930,-811.47,0.00021917,2]
[385874296,1758079837940,-480.0,0.00021917,2]
[385874297,1758079837949,-480.0,0.00021917,2]
[385874298,1758079837959,-554.09,0.00021917,2]
[385874299,1758079837969,-417.0624203,0.00021917,2]
[385874300,1758079837978,-562.46,0.00021917,2]
[385874301,1758079837987,-480.0,0.00021917,2]
[385874302,1758079837996,-930.6,0.00021917,2]
[385874303,1758079838005,-505.6,0.00021917,2]
[385874304,1758079838014,-480.0,0.00021917,2]
[385874305,1758079838023,-503.21,0.00021917,2]
[385874306,1758079838033,-480.0,0.00021917,2]
[385874307,1758079838042,-1381.2,0.00021917,2]
[385874309,1758079838053,-480.0,0.00021917,2]
[385874311,1758079838062,-278.94957905,0.00021917,2]
[385874312,1758079838074,-201.05042095,0.00021917,2]
[385874313,1758079838084,-480.0,0.00021917,2]
[385874314,1758079838093,-333.42458131,0.00021917,2]